bitfinex/quotes_BTCUSD_20251215
["timestamp","ask_amount","ask_price","bid_price","bid_amount"]
[1765831784481,0.2326046,85983.0,85981.0,0.00011456]
[1765831786167,0.24423467,85984.0,85981.0,0.00011456]
[1765831786168,0.24423214,85984.0,85981.0,0.00011456]
[1765831786374,0.23260558,85983.0,85981.0,0.00011456]
[1765831786507,0.23260558,85983.0,85981.0,0.00111456]
[1765831786914,0.0116298,85986.0,85982.0,0.01163034]
[1765831787130,0.24423458,85984.0,85981.0,0.00311456]
[1765831787698,0.23260488,85983.0,85981.0,0.00311456]
[1765831787912,0.23260488,85983.0,85981.0,0.00211456]
[1765831788087,0.0116298,85986.0,85983.0,0.2326038]
[1765831788325,0.23260443,85983.0,85981.0,0.00372743]
[1765831788673,0.01162993,85985.0,85982.0,0.01163034]
[1765831788880,0.0116298,85986.0,85982.0,0.01163034]
[1765831789054,0.00998965,85987.0,85983.0,0.24423195]
[1765831789260,0.00998965,85987.0,85985.0,0.23259735]
[1765831789466,0.00998965,85987.0,85982.0,0.01363034]
[1765831789669,0.00998965,85987.0,85984.0,0.01163007]
[1765831789869,0.00998965,85987.0,85985.0,0.2325986]
[1765831790271,0.00998965,85987.0,85986.0,0.232596]
[1765831790883,0.04005836,85987.0,85986.0,0.232596]
[1765831791150,0.03006871,85987.0,85986.0,0.23420887]
[1765831791358,0.03006871,85987.0,85986.0,0.33476887]
[1765831791578,0.23257194,85995.0,85992.0,0.24420807]
[1765831791783,0.23257194,85995.0,85990.0,0.23258357]
[1765831791784,0.01162939,85989.0,85986.0,0.00161287]
[1765831792019,0.24258294,85987.0,85986.0,0.00161287]
[1765831792428,0.24258294,85987.0,85986.0,0.23420887]
[1765831792429,0.00998965,85987.0,85986.0,0.23420887]
[1765831792552,0.24258294,85987.0,85986.0,0.00461287]
[1765831792753,0.01162912,85991.0,85985.0,0.2345987]
[1765831792754,0.00998965,85986.0,85985.0,0.2345987]
[1765831792948,0.00998965,85986.0,85981.0,0.01174503]
[1765831792949,0.00998965,85985.0,85981.0,0.01174503]
[1765831793196,0.23260682,85982.0,85981.0,0.00011456]
[1765831794176,0.24259647,85982.0,85981.0,0.00011456]
[1765831794333,0.37809659,85982.0,85981.0,0.00011456]
[1765831794713,0.36810694,85982.0,85981.0,0.00011456]
[1765831794917,0.37809659,85982.0,85981.0,0.00011456]
[1765831795168,0.37809659,85982.0,85981.0,0.00211456]
[1765831795376,0.66879659,85982.0,85981.0,0.00611456]
[1765831795582,0.66879659,85982.0,85981.0,0.00411456]
[1765831795770,0.66879659,85982.0,85981.0,0.00011456]
[1765831795978,0.66979659,85982.0,85981.0,0.00011456]
[1765831796148,0.66879659,85982.0,85981.0,0.00011456]
[1765831796352,0.66979659,85982.0,85981.0,0.00011456]
[1765831796573,0.67179659,85982.0,85981.0,0.00011456]
[1765831796781,0.67079659,85982.0,85981.0,0.00011456]
[1765831797440,1.72081498,85982.0,85981.0,4.56e-06]
[1765831798197,1.72281498,85982.0,85981.0,4.56e-06]
[1765831799605,0.64071987,85982.0,85981.0,4.56e-06]
[1765831800071,0.62227987,85982.0,85981.0,4.56e-06]
[1765831800281,0.64071987,85982.0,85981.0,4.56e-06]
[1765831800483,1.64071987,85982.0,85981.0,4.56e-06]
[1765831801131,1.45450268,85982.0,85981.0,4.56e-06]
[1765831801337,1.57083383,85982.0,85981.0,4.56e-06]
[1765831801558,1.56184418,85982.0,85981.0,4.56e-06]
[1765831801754,0.01163588,85941.0,85922.0,0.0004]
[1765831802037,0.24275619,85923.0,85922.0,0.0004]
[1765831802251,0.23288083,85923.0,85922.0,0.0004]
[1765831802590,0.00011429,85923.0,85922.0,0.0004]
[1765831802798,0.00011429,85923.0,85922.0,0.04208287]
[1765831803015,0.00011429,85923.0,85922.0,0.00201287]
[1765831803740,0.00011429,85923.0,85922.0,0.00601287]
[1765831803949,0.00011429,85923.0,85922.0,0.0044]
[1765831804355,0.08343552,85923.0,85922.0,0.0044]
[1765831804578,0.07344587,85923.0,85922.0,0.0044]
[1765831804747,0.37413552,85923.0,85922.0,0.0074]
[1765831805091,0.29081429,85923.0,85922.0,0.0044]
[1765831805295,0.23288083,85923.0,85922.0,0.0044]
[1765831805431,0.00011429,85923.0,85922.0,0.0014]
[1765831805830,0.00011429,85923.0,85922.0,0.0024]
[1765831806032,0.08343464,85923.0,85922.0,0.0024]
[1765831806231,0.36414499,85923.0,85922.0,0.0004]
[1765831806681,0.37413464,85923.0,85922.0,0.0004]
[1765831807052,0.37413464,85923.0,85922.0,0.0054]
[1765831807254,0.00011429,85923.0,85922.0,0.0054]
[1765831807453,0.00011429,85923.0,85922.0,0.0084]
[1765831808018,0.23288083,85923.0,85922.0,0.0054]
[1765831808441,0.00011429,85923.0,85922.0,0.33688925]
[1765831808585,0.00011429,85923.0,85922.0,0.33850212]
[1765831809095,0.23288083,85923.0,85922.0,0.00701287]
[1765831809324,0.00011429,85923.0,85922.0,0.01001287]
[1765831809543,0.00011429,85923.0,85922.0,0.10773287]
[1765831809743,0.00011429,85923.0,85922.0,0.10273287]
[1765831810501,0.00011429,85923.0,85922.0,0.04208287]
[1765831810893,0.00011429,85923.0,85922.0,0.04308287]
[1765831811031,0.00011429,85923.0,85922.0,0.00401287]
[1765831811230,0.00011429,85923.0,85922.0,0.00201287]
[1765831811802,0.00011429,85923.0,85922.0,0.04808287]
[1765831812169,0.00011429,85923.0,85922.0,0.09973287]
[1765831812374,0.00011429,85923.0,85922.0,0.12800979]
[1765831812572,0.00011429,85923.0,85922.0,0.13000979]
[1765831812782,0.00011429,85923.0,85922.0,0.12500979]
[1765831813437,0.00011429,85923.0,85922.0,0.24146338]
[1765831813645,0.00011429,85923.0,85922.0,0.09973287]
[1765831814065,0.00011429,85923.0,85922.0,0.12900979]
[1765831814282,0.00011429,85923.0,85922.0,0.24546338]
[1765831814496,0.00011429,85923.0,85922.0,0.09973287]
[1765831814702,0.00011429,85923.0,85922.0,0.12800979]
[1765831814887,0.00011429,85923.0,85922.0,0.13100979]
[1765831815086,0.00011429,85923.0,85922.0,0.12600979]
[1765831815233,0.00011429,85923.0,85922.0,0.12300979]
[1765831815439,0.00011429,85923.0,85922.0,0.12900979]
[1765831815656,0.00011429,85923.0,85922.0,0.13300979]
[1765831816298,0.00011429,85923.0,85922.0,0.27620485]
[1765831816503,0.0116344,85952.0,85949.0,0.0116348]
[1765831816699,0.0116344,85952.0,85943.0,0.01163561]
[1765831816700,0.23270101,85948.0,85943.0,0.01163561]
[1765831816938,0.00011454,85952.0,85951.0,0.07071]
[1765831817074,0.00011454,85952.0,85951.0,0.12836]
[1765831817271,0.00011454,85952.0,85951.0,0.15324194]
[1765831817479,0.00011454,85952.0,85951.0,0.03225287]
[1765831817685,0.00011454,85952.0,85951.0,0.00161287]
[1765831818091,0.00011454,85952.0,85951.0,0.00561287]
[1765831818312,0.00011454,85952.0,85951.0,0.003]
[1765831818725,0.05825433,85952.0,85951.0,0.009]
[1765831818929,0.25,85950.0,85932.0,0.03064]
[1765831819144,0.01163697,85933.0,85930.0,0.04912]
[1765831819349,0.0116367,85935.0,85931.0,0.01163724]
[1765831819569,0.24437747,85933.0,85930.0,0.04912]
[1765831819799,0.24437459,85934.0,85930.0,0.29350408]
[1765831820016,0.0116367,85935.0,85932.0,0.0116371]
[1765831820234,0.01163683,85934.0,85931.0,0.01163724]
[1765831820495,0.24436636,85937.0,85934.0,0.23273619]
[1765831820924,0.24436636,85937.0,85933.0,0.23273795]
[1765831821129,0.24436636,85937.0,85934.0,0.23273647]
[1765831821343,0.2327205,85940.0,85936.0,0.24436659]
[1765831821535,0.24434109,85946.0,85943.0,0.23271199]
[1765831821846,0.02162418,85951.0,85948.0,0.01163494]
[1765831822042,0.01163426,85953.0,85949.0,0.24433032]
[1765831822249,0.01163399,85955.0,85951.0,0.23269071]
[1765831822462,0.23268287,85954.0,85950.0,0.23269294]
[1765831822665,0.23268287,85954.0,85951.0,0.04007]
[1765831822870,0.01163399,85955.0,85951.0,0.04007]
[1765831823073,0.01163399,85955.0,85950.0,0.23269294]
[1765831823289,0.01163385,85956.0,85950.0,0.23269294]
[1765831823471,0.23266775,85960.0,85950.0,0.23269294]
[1765831823472,0.01163331,85960.0,85951.0,0.12098907]
[1765831823731,0.01163331,85960.0,85951.0,0.09933287]
[1765831823935,0.24429981,85960.0,85951.0,0.09933287]
[1765831824157,0.00998965,85969.0,85951.0,0.00161287]
[1765831824158,0.01163412,85954.0,85951.0,0.00161287]
[1765831824358,0.01163331,85960.0,85951.0,0.04168287]
[1765831824570,0.01163358,85958.0,85951.0,0.09933287]
[1765831824770,0.01163345,85959.0,85951.0,0.09933287]
[1765831824948,0.24429419,85962.0,85951.0,0.12260194]
[1765831825170,0.24429419,85962.0,85951.0,0.12360194]
[1765831825374,0.01111503,85965.0,85962.0,0.01163304]
[1765831825808,0.01111503,85965.0,85962.0,0.01324591]
[1765831826014,0.02162174,85969.0,85964.0,0.01163277]
[1765831826225,0.00998965,85969.0,85966.0,0.24428157]
[1765831826437,0.2326313,85973.0,85969.0,0.01163209]
[1765831826438,0.01163169,85972.0,85969.0,0.01163209]
[1765831826647,0.01163182,85971.0,85968.0,0.04007]
[1765831826861,0.23263971,85970.0,85968.0,0.04007]
[1765831827064,0.23263971,85970.0,85964.0,0.30193563]
[1765831827065,0.24428075,85967.0,85963.0,0.23265808]
[1765831827275,0.23265616,85964.0,85962.0,0.00161287]
[1765831827679,0.23265823,85963.0,85962.0,0.00161287]
[1765831828581,0.24428868,85965.0,85962.0,0.00161287]
[1765831828780,0.23265554,85964.0,85962.0,0.00161287]
[1765831829012,0.0116325,85966.0,85962.0,0.24590658]
[1765831829141,0.23264764,85967.0,85963.0,0.23265783]
[1765831829346,0.01163223,85968.0,85965.0,0.24428521]
[1765831829561,0.23265011,85966.0,85963.0,0.24428996]
[1765831829916,0.23265823,85963.0,85962.0,0.00361287]
[1765831830127,0.01163264,85965.0,85962.0,0.00461287]
[1765831830407,0.24426625,85972.0,85968.0,0.01163223]
[1765831830563,0.24426916,85971.0,85967.0,0.01163237]
[1765831830969,0.01163128,85975.0,85968.0,0.01163223]
[1765831831164,0.03115307,85983.0,85980.0,0.01163061]
[1765831831372,0.00011452,85983.0,85982.0,0.24423716]
[1765831831550,0.00011452,85983.0,85982.0,0.08919]
[1765831832151,0.23271863,85983.0,85982.0,0.03571]
[1765831832406,0.00011452,85983.0,85982.0,0.09493]
[1765831832719,0.23271863,85983.0,85982.0,0.09493]
[1765831832929,0.00111452,85983.0,85982.0,0.32753682]
[1765831833076,0.00111452,85983.0,85982.0,0.09654287]
[1765831833463,0.00011452,85983.0,85982.0,0.09654287]
[1765831833686,0.00111452,85983.0,85982.0,0.32914969]
[1765831833886,0.00011452,85983.0,85982.0,0.32914969]
[1765831834457,0.00011452,85983.0,85982.0,0.33014969]
[1765831834882,0.00011452,85983.0,85982.0,0.33114969]
[1765831835082,0.00011452,85983.0,85982.0,0.33014969]
[1765831835682,0.00011452,85983.0,85982.0,0.32914969]
[1765831836139,0.00011452,85983.0,85982.0,0.33114969]
[1765831837219,0.00011452,85983.0,85982.0,0.33314969]
[1765831843291,0.00011452,85983.0,85982.0,0.29236969]
[1765831843467,0.23271863,85983.0,85982.0,0.04132287]
[1765831843672,0.00011452,85983.0,85982.0,0.23821969]
[1765831843921,0.23259556,85987.0,85982.0,0.01724321]
[1765831844111,0.24422522,85987.0,85984.0,0.24422929]
[1765831844455,0.24422056,85988.0,85984.0,0.24422929]
[1765831844713,0.2442194,85989.0,85986.0,0.24422527]
[1765831844919,0.23259396,85987.0,85985.0,0.01162993]
[1765831845268,0.23259059,85988.0,85985.0,0.2442282]
[1765831845694,0.24422011,85988.0,85985.0,0.2442282]
[1765831845903,0.01162939,85989.0,85986.0,0.23359533]
[1765831846129,0.2442182,85989.0,85986.0,0.23359533]
[1765831846348,0.2442182,85989.0,85986.0,0.23259533]
[1765831846793,0.2325959,85987.0,85985.0,0.001]
[1765831846993,0.24422011,85988.0,85985.0,0.001]
[1765831847203,0.01162939,85989.0,85986.0,0.0116298]
[1765831847440,0.24421935,85989.0,85986.0,0.24422368]
[1765831847644,0.0116279,86000.0,85997.0,0.01162831]
[1765831847851,0.01162723,86005.0,85999.0,0.0651]
[1765831848074,0.00998965,86012.0,86007.0,0.01162696]
[1765831848075,0.01162628,86012.0,86007.0,0.01162696]
[1765831848294,0.01162628,86012.0,86009.0,0.01162669]
[1765831848295,0.0001145,86012.0,86009.0,0.01162669]
[1765831848504,0.0001145,86012.0,86011.0,0.26999839]
[1765831848842,0.0001145,86012.0,86011.0,0.09669]
[1765831849046,0.0001145,86012.0,86011.0,0.09569]
[1765831849249,0.23264019,86012.0,86011.0,0.03647]
[1765831849447,0.23252839,86011.0,86010.0,0.02763]
[1765831849888,0.23264019,86012.0,86011.0,0.001]
[1765831850063,0.0001145,86012.0,86011.0,0.001]
[1765831850264,0.23264019,86012.0,86011.0,0.001]
[1765831850690,0.23264019,86012.0,86011.0,0.03847]
[1765831851072,0.23264019,86012.0,86011.0,0.03747]
[1765831851334,0.0001145,86012.0,86010.0,0.23353096]
[1765831851497,0.0001145,86012.0,86011.0,0.26999839]
[1765831851710,0.0001145,86012.0,86011.0,0.32921839]
[1765831852068,0.0001145,86012.0,86011.0,0.33083126]
[1765831852442,0.0001145,86012.0,86011.0,0.33183126]
[1765831853860,0.0001145,86012.0,86011.0,0.33383126]
[1765831854020,0.0001145,86012.0,86011.0,0.33283126]
[1765831854203,0.0001145,86012.0,86011.0,0.33483126]
[1765831855172,0.0004,86024.0,86023.0,0.23249596]
[1765831855328,0.0004,86024.0,86023.0,0.31764883]
[1765831855519,0.36708989,86037.0,86036.0,0.23246083]
[1765831855713,0.36708989,86037.0,86036.0,0.29756083]
[1765831855917,0.36708989,86037.0,86036.0,0.0651]
[1765831856127,0.59954801,86037.0,86036.0,0.0651]
[1765831856526,0.36708989,86037.0,86036.0,0.29756083]
[1765831857025,0.36808989,86037.0,86036.0,0.29756083]
[1765831857235,0.36808989,86037.0,86036.0,0.35678083]
[1765831857479,0.36808989,86037.0,86036.0,0.02763]
[1765831857679,0.36808989,86037.0,86034.0,0.03006331]
[1765831857680,0.37971279,86037.0,86034.0,0.01844]
[1765831857887,0.36808989,86037.0,86036.0,0.32915083]
[1765831858089,0.36808989,86037.0,86036.0,0.23246083]
[1765831860131,0.00998965,86035.0,86034.0,0.01844]
[1765831860331,0.23246353,86035.0,86034.0,0.01844]
[1765831860566,0.23246353,86035.0,86008.0,0.01162682]
[1765831860567,0.01162601,86014.0,86008.0,0.01162682]
[1765831860732,0.01162601,86014.0,86009.0,0.01162669]
[1765831860733,0.01162614,86013.0,86009.0,0.01162669]
[1765831861092,0.01162614,86013.0,86007.0,0.01162696]
[1765831861093,0.01162601,86014.0,86011.0,0.23252746]
[1765831861346,0.23251672,86016.0,86011.0,0.01162641]
[1765831861539,0.01162574,86016.0,86013.0,0.24414906]
[1765831861746,0.01162574,86016.0,86012.0,0.01162628]
[1765831861957,0.01162601,86014.0,86007.0,0.01844]
[1765831862184,0.01162587,86015.0,86011.0,0.01162641]
[1765831862393,0.24415097,86013.0,86009.0,0.01462669]
[1765831862588,0.01162614,86013.0,86010.0,0.01162655]
[1765831862821,0.244152,86012.0,86009.0,0.003]
[1765831863025,0.2441433,86016.0,86011.0,0.01162641]
[1765831863226,0.00998965,86020.0,86017.0,0.0116256]
[1765831863517,0.00998965,86020.0,86019.0,0.23250677]
[1765831863724,0.01162452,86025.0,86020.0,0.0116252]
[1765831863926,0.24412044,86024.0,86020.0,0.23250374]
[1765831864346,0.23249664,86023.0,86020.0,0.23250374]
[1765831864548,0.01162506,86021.0,86016.0,0.24413926]
[1765831864713,0.0116252,86020.0,86019.0,0.003]
[1765831865086,0.00998965,86020.0,86019.0,0.003]
[1765831865289,0.00998965,86018.0,86017.0,0.0116256]
[1765831865419,0.01162425,86027.0,86023.0,0.23249596]
[1765831865629,0.23248463,86028.0,86021.0,0.01162506]
[1765831865630,0.24411415,86026.0,86021.0,0.01162506]
[1765831865827,0.23248501,86029.0,86024.0,0.01162466]
[1765831866030,0.90287423,86040.0,86020.0,0.002]
[1765831866031,0.23250136,86021.0,86020.0,0.002]
[1765831866233,0.23249878,86022.0,86020.0,0.002]
[1765831866453,0.23250136,86021.0,86020.0,0.002]
[1765831866652,0.2325176,86015.0,86012.0,0.24415176]
[1765831866840,0.23252569,86012.0,86007.0,0.00161287]
[1765831867037,0.23252569,86012.0,86009.0,0.01162669]
[1765831867038,0.01162628,86012.0,86009.0,0.01162669]
[1765831867273,0.01162371,86031.0,86029.0,0.23247946]
[1765831867479,0.01162344,86033.0,86020.0,0.001]
[1765831867480,0.01162358,86032.0,86028.0,0.01162412]
[1765831867906,0.24408975,86034.0,86031.0,0.01162371]
[1765831868112,0.232461,86036.0,86032.0,0.24408981]
[1765831868317,0.01162331,86034.0,86030.0,0.23247626]
[1765831868518,0.01162358,86032.0,86029.0,0.01162398]
[1765831868719,0.01162358,86032.0,86029.0,0.2441032]
[1765831868974,0.01162317,86035.0,86031.0,0.01162371]
[1765831869173,0.59954821,86037.0,86036.0,0.23246083]
[1765831869174,0.36708989,86037.0,86036.0,0.23246083]
[1765831869389,0.36708989,86037.0,86036.0,0.2719237]
[1765831869586,0.36708989,86037.0,86036.0,0.3326837]
[1765831869998,0.2324122,86054.0,86036.0,0.10022287]
[1765831870209,0.23247163,86032.0,86030.0,0.001]
[1765831870414,0.23247434,86031.0,86030.0,0.001]
[1765831870627,0.23247704,86030.0,86029.0,0.02844]
[1765831870830,0.23247704,86030.0,86029.0,0.01]
[1765831871044,0.23247434,86031.0,86029.0,0.01]
[1765831871249,0.00998965,86044.0,86041.0,0.01162236]
[1765831871472,0.01162115,86050.0,86046.0,0.01162169]
[1765831871684,0.23279595,86054.0,86046.0,0.01162169]
[1765831871893,0.00038181,86054.0,86052.0,0.2324172]
[1765831872106,0.00038181,86054.0,86050.0,0.01162115]
[1765831872322,0.00038181,86054.0,86049.0,0.23242467]
[1765831872549,0.24404215,86051.0,86048.0,0.01844]
[1765831872784,0.24404215,86051.0,86048.0,0.04656]
[1765831873030,0.23279449,86054.0,86051.0,0.01162101]
[1765831873031,0.00038181,86054.0,86051.0,0.01162101]
[1765831873237,0.23242383,86050.0,86048.0,0.01844]
[1765831873452,0.23244191,86043.0,86040.0,0.0116225]
[1765831873654,0.23244191,86043.0,86039.0,0.01162263]
[1765831873865,0.23244191,86043.0,86042.0,0.01844]
[1765831874318,0.01162128,86049.0,86044.0,0.01162196]
[1765831874536,0.01162128,86049.0,86042.0,0.01844]
[1765831874537,0.01162196,86044.0,86042.0,0.01844]
[1765831874745,0.01162358,86032.0,86027.0,0.2907]
[1765831874970,0.01162358,86032.0,86016.0,0.05940873]
[1765831874971,0.23247434,86031.0,86023.0,0.01162479]
[1765831875182,0.23247434,86031.0,86028.0,0.01844]
[1765831875800,0.01162331,86034.0,86030.0,0.2324767]
[1765831875999,0.23247566,86031.0,86029.0,0.01]
[1765831876425,0.24409606,86032.0,86029.0,0.01]
[1765831876671,0.23247473,86031.0,86029.0,0.013]
[1765831877082,0.30570284,86031.0,86029.0,0.01]
[1765831877499,0.00998965,86030.0,86029.0,0.011]
[1765831877938,0.00998965,86030.0,86029.0,0.01]
[1765831878372,0.00998965,86030.0,86029.0,0.011]
[1765831879441,0.00998965,86030.0,86029.0,0.01]
[1765831879650,0.0388988,86030.0,86029.0,0.01]
[1765831880502,0.3295988,86030.0,86029.0,0.01]
[1765831881042,0.56207584,86030.0,86029.0,0.01]
[1765831881457,0.53316669,86030.0,86029.0,0.01]
[1765831886043,0.52317704,86030.0,86029.0,0.01]
[1765831886497,0.53316669,86030.0,86029.0,0.01]
[1765831896296,0.53316669,86030.0,86007.0,0.001]
[1765831896297,0.2325365,86008.0,86007.0,0.001]
[1765831897342,0.24252615,86008.0,86007.0,0.001]
[1765831898596,0.23256787,85997.0,85993.0,0.23257448]
[1765831898941,0.23257341,85995.0,85993.0,0.0001145]
[1765831899147,0.23257341,85995.0,85993.0,0.2326912]
[1765831899387,0.01162844,85996.0,85993.0,0.2326912]
[1765831899388,0.24419748,85996.0,85993.0,0.0001145]
[1765831899589,0.24419748,85996.0,85993.0,0.2326914]
[1765831899863,0.01162844,85996.0,85994.0,0.23257436]
[1765831900486,0.23257436,85994.0,85993.0,0.0001145]
[1765831900687,0.23257235,85995.0,85993.0,0.0001145]
[1765831900881,0.23257235,85995.0,85993.0,0.0011145]
[1765831901034,0.24419616,85997.0,85993.0,0.01374335]
[1765831901242,0.23257403,85995.0,85993.0,0.0021145]
[1765831901440,0.24419807,85996.0,85994.0,0.001]
[1765831901642,0.01162831,85997.0,85994.0,0.001]
[1765831901894,0.23257166,85995.0,85994.0,0.001]
[1765831902270,0.33083045,85995.0,85994.0,0.001]
[1765831902473,0.23257166,85995.0,85994.0,0.001]
[1765831902672,0.23257436,85994.0,85993.0,0.0001145]
[1765831903077,0.23257436,85994.0,85993.0,0.0011145]
[1765831903279,0.23257436,85994.0,85993.0,0.0001145]
[1765831903949,0.25418805,85996.0,85994.0,0.002]
[1765831904154,0.0116279,86000.0,85995.0,0.01162858]
[1765831904360,0.0116279,86000.0,85994.0,0.24781375]
[1765831904361,0.23257166,85995.0,85994.0,0.00161287]
[1765831905522,0.23257166,85995.0,85994.0,0.00361287]
[1765831905981,0.23256895,85996.0,85994.0,0.00361287]
[1765831906187,0.23257166,85995.0,85994.0,0.00361287]
[1765831906600,0.23257166,85995.0,85994.0,0.00461287]
[1765831906836,0.23257166,85995.0,85994.0,0.00161287]
[1765831907062,0.24256401,85994.0,85993.0,0.0001145]
[1765831908781,0.24256401,85994.0,85993.0,0.0021145]
[1765831909411,0.24256401,85994.0,85993.0,0.0031145]
[1765831911344,0.01162763,86002.0,85994.0,0.01162871]
[1765831911581,0.2616279,86000.0,85994.0,0.00161287]
[1765831911788,0.24418899,85999.0,85996.0,0.01162844]
[1765831911992,0.23256895,85996.0,85994.0,0.00161287]
[1765831912198,0.23257166,85995.0,85994.0,0.00161287]
[1765831912638,0.23257436,85994.0,85993.0,0.0021145]
[1765831913528,0.23257436,85994.0,85993.0,0.0001145]
[1765831913950,0.23257436,85994.0,85993.0,0.0011145]
[1765831914455,0.02161728,86002.0,85998.0,0.01162817]
[1765831914664,0.25,86010.0,85993.0,0.0011145]
[1765831914665,0.01162696,86007.0,85999.0,0.01162804]
[1765831914883,0.24416804,86007.0,86003.0,0.23254935]
[1765831915085,0.0116275,86003.0,85995.0,0.01324145]
[1765831915291,0.23255804,86001.0,85996.0,0.23256358]
[1765831915451,0.23255804,86001.0,85997.0,0.23256382]
[1765831915651,0.24418044,86002.0,85998.0,0.01162817]
[1765831915861,0.0116275,86003.0,86000.0,0.0116279]
[1765831916060,0.24417989,86004.0,86000.0,0.0116279]
[1765831916255,0.00998965,86009.0,86005.0,0.24417153]
[1765831916464,0.00998965,86009.0,86005.0,0.01162723]
[1765831916465,0.01162669,86009.0,86005.0,0.01162723]
[1765831916668,0.23253658,86008.0,86005.0,0.24417159]
[1765831916879,0.24416057,86009.0,86006.0,0.23254173]
[1765831917074,0.23254226,86006.0,86003.0,0.0116275]
[1765831917283,0.23254484,86005.0,86003.0,0.0116275]
[1765831917455,0.0116275,86003.0,85996.0,0.23256859]
[1765831917656,0.23256625,85997.0,85996.0,0.00161287]
[1765831919178,0.23256594,85998.0,85996.0,0.00161287]
[1765831919379,0.23256625,85997.0,85996.0,0.00261287]
[1765831920001,0.23256625,85997.0,85996.0,0.00461287]
[1765831920208,0.23256625,85997.0,85996.0,0.00361287]
[1765831920551,0.23256625,85997.0,85993.0,0.0001145]
[1765831920552,0.24256401,85994.0,85993.0,0.0001145]
[1765831922430,0.24256401,85994.0,85993.0,0.0011145]
[1765831922711,0.24256401,85994.0,85993.0,0.0031145]
[1765831922865,0.24256401,85994.0,85993.0,0.0021145]
[1765831923064,0.24256401,85994.0,85993.0,0.0031145]
[1765831923301,0.59168814,85994.0,85993.0,0.0021145]
[1765831923506,0.23264607,85968.0,85965.0,0.24428527]
[1765831923708,0.2442783,85968.0,85965.0,0.00011452]
[1765831923912,0.02161985,85983.0,85974.0,0.01163142]
[1765831924107,0.2907,85988.0,85974.0,0.00161287]
[1765831924108,0.01162966,85987.0,85974.0,0.00161287]
[1765831924295,0.23259687,85986.0,85982.0,0.26199609]
[1765831924492,0.23259059,85988.0,85983.0,0.0116302]
[1765831924811,0.24422863,85985.0,85982.0,0.02939]
[1765831925145,0.01162993,85985.0,85981.0,0.01163047]
[1765831925310,0.00998965,85981.0,85978.0,0.24424821]
[1765831925495,0.25423077,85981.0,85978.0,0.24424821]
[1765831925700,0.23261239,85980.0,85978.0,0.24424821]
[1765831926444,0.23261239,85980.0,85976.0,0.24425239]
[1765831926445,0.23261239,85980.0,85977.0,0.01163101]
[1765831926773,0.23261239,85980.0,85967.0,0.24427948]
[1765831926774,0.01163155,85973.0,85967.0,0.24427948]
[1765831926925,0.01163223,85968.0,85965.0,0.00011452]
[1765831927248,0.23263391,85972.0,85969.0,0.23264093]
[1765831927456,0.23264219,85969.0,85966.0,0.24428261]
[1765831927591,0.24427127,85970.0,85967.0,0.2326473]
[1765831927788,0.01163196,85970.0,85968.0,0.23264428]
[1765831928293,0.00998965,85973.0,85972.0,0.23263388]
[1765831929179,0.02162026,85980.0,85977.0,0.24424998]
[1765831929357,0.00998965,85980.0,85979.0,0.23261494]
[1765831929685,0.00998965,85980.0,85977.0,0.01163101]
[1765831929976,0.03006966,85987.0,85983.0,0.0116302]
[1765831929977,0.00998965,85986.0,85983.0,0.0116302]
[1765831930107,0.23260141,85984.0,85979.0,0.04804074]
[1765831930311,0.23261494,85979.0,85977.0,0.00161287]
[1765831930510,0.23261764,85978.0,85977.0,0.00161287]
[1765831930727,0.24426827,85972.0,85969.0,0.01163209]
[1765831930965,0.2442556,85976.0,85971.0,0.01163182]
[1765831930966,0.01163142,85974.0,85971.0,0.01163182]
[1765831931143,0.23262617,85975.0,85972.0,0.23263148]
[1765831931343,0.00998965,85978.0,85976.0,0.2326228]
[1765831931545,0.28535145,85984.0,85981.0,0.23260695]
[1765831931546,0.00998965,85983.0,85981.0,0.23260695]
[1765831931752,0.01162925,85990.0,85986.0,0.0116298]
[1765831931954,0.23256132,85999.0,85995.0,0.01162858]
[1765831932156,0.24418936,85999.0,85997.0,0.23256568]
[1765831932357,0.01162777,86001.0,85997.0,0.01162831]
[1765831932555,0.01162777,86001.0,85996.0,0.01162844]
[1765831932556,0.01162804,85999.0,85996.0,0.24419715]
[1765831932754,0.23256503,85998.0,85995.0,0.01162858]
[1765831932954,0.23256146,85999.0,85996.0,0.01162844]
[1765831933200,7.094e-05,85999.0,85997.0,0.24419388]
[1765831933430,0.00107094,85999.0,85998.0,0.29222989]
[1765831933636,0.00107094,85999.0,85998.0,0.44512]
[1765831933918,0.04277759,86025.0,86020.0,0.0116252]
[1765831934146,0.01162466,86024.0,86020.0,0.0116252]
[1765831934265,7.098e-05,86025.0,86023.0,0.23249596]
[1765831934668,7.098e-05,86025.0,86024.0,0.11773932]
[1765831934911,7.098e-05,86025.0,86024.0,0.09610287]
[1765831935089,7.098e-05,86025.0,86024.0,0.03802287]
[1765831935695,7.098e-05,86025.0,86024.0,0.09710287]
[1765831936570,7.098e-05,86025.0,86024.0,0.00261287]
[1765831936990,7.098e-05,86025.0,86024.0,0.12135219]
[1765831938244,7.098e-05,86025.0,86024.0,0.12035219]
[1765831938899,7.098e-05,86025.0,86024.0,0.11935219]
[1765831939412,7.098e-05,86025.0,86024.0,0.12135219]
[1765831940022,7.098e-05,86025.0,86024.0,0.12335219]
[1765831940443,7.098e-05,86025.0,86024.0,0.23980578]
[1765831940656,7.098e-05,86025.0,86024.0,0.12335219]
[1765831941110,7.098e-05,86025.0,86024.0,0.23980578]
[1765831941324,0.25403128,86051.0,86044.0,0.01162196]
[1765831941548,0.25403128,86051.0,86049.0,0.0658]
[1765831941549,0.00038156,86051.0,86049.0,0.0658]
[1765831941762,0.23242694,86049.0,86046.0,0.24405438]
[1765831941976,0.00038156,86051.0,86047.0,0.01162155]
[1765831942201,0.00038156,86051.0,86049.0,0.23242538]
[1765831942405,0.00038156,86051.0,86050.0,0.03641]
[1765831942603,0.00038156,86051.0,86050.0,0.09449]
[1765831942824,0.00038156,86051.0,86050.0,0.03641]
[1765831943534,0.00038156,86051.0,86050.0,0.1177323]
[1765831943745,0.00038156,86051.0,86050.0,0.09449]
[1765831943948,0.00038156,86051.0,86050.0,0.03641]
[1765831944776,0.00038156,86051.0,86050.0,0.1177323]
[1765831944981,0.00038156,86051.0,86050.0,0.09449]
[1765831945771,0.00038156,86051.0,86050.0,0.13778517]
[1765831945971,0.00038156,86051.0,86050.0,0.11454287]
[1765831947141,0.00038156,86051.0,86050.0,0.11554287]
[1765831947911,0.00038156,86051.0,86050.0,0.11654287]
[1765831948316,0.01037121,86051.0,86050.0,0.02205287]
[1765831948541,0.00038156,86051.0,86050.0,0.34896587]
[1765831948757,0.00038156,86051.0,86050.0,0.29088587]
[1765831949190,0.00038156,86051.0,86050.0,0.34796587]
[1765831949402,0.00038156,86051.0,86050.0,0.34696587]
[1765831950477,0.00038156,86051.0,86050.0,0.34796587]
[1765831950902,0.00038156,86051.0,86050.0,0.28988587]
[1765831951310,0.00038156,86051.0,86050.0,0.34621587]
[1765831951992,0.00038156,86051.0,86050.0,0.34521587]
[1765831952221,0.00038156,86051.0,86050.0,0.34721587]